[Event "Titled Tuesday Blitz June 27 Early 2023"]
[White "Ginzburg, Yakov"]
[Black "Maximov, Dmitry"]
[WhiteFideId "4157176"]
[BlackFideId "14105659"]
[WhiteElo "2488"]
[BlackElo "2846"]
[Result "0-1"]
[Round "1"]
[TimeControl "180+2"]
[Date "2023.06.27"]
[WhiteClock "0:00:00"]
[BlackClock "0:01:18"]
[Board "58"]

1. e4 {[%clk 0:02:59]}  c5 {[%clk 0:02:59]} 2. Nf3 {[%clk 0:02:59]}  d6 {[%clk 0:03:00]} 3. d4 {[%clk 0:02:58]}  cxd4 {[%clk 0:03:01]} 4. Nxd4 {[%clk 0:02:58]}  Nf6 {[%clk 0:03:01]} 5. Nc3 {[%clk 0:02:58]}  Nc6 {[%clk 0:03:02]} 6. Bg5 {[%clk 0:02:54]}  e6 {[%clk 0:03:02]} 7. Qd2 {[%clk 0:02:54]}  Qb6 {[%clk 0:03:02]} 8. O-O-O {[%clk 0:02:52]}  Nxd4 {[%clk 0:03:00]} 9. Qxd4 {[%clk 0:02:51]}  Qxd4 {[%clk 0:03:01]} 10. Rxd4 {[%clk 0:02:51]}  a6 {[%clk 0:03:01]} 11. f4 {[%clk 0:02:48]}  h6 {[%clk 0:02:50]} 12. Bh4 {[%clk 0:02:33]}  Be7 {[%clk 0:02:45]} 13. Be2 {[%clk 0:02:24]}  g5 {[%clk 0:02:36]} 14. e5 {[%clk 0:02:04]}  dxe5 {[%clk 0:02:29]} 15. fxe5 {[%clk 0:02:03]}  gxh4 {[%clk 0:02:29]} 16. exf6 {[%clk 0:01:56]}  Bxf6 {[%clk 0:02:29]} 17. Rd3 {[%clk 0:01:48]}  Bd7 {[%clk 0:02:22]} 18. Bf3 {[%clk 0:01:48]}  O-O-O {[%clk 0:02:18]} 19. Rhd1 {[%clk 0:01:46]}  b5 {[%clk 0:02:02]} 20. Bb7+ {[%clk 0:01:41]}  Kxb7 {[%clk 0:01:54]} 21. Rxd7+ {[%clk 0:01:41]}  Rxd7 {[%clk 0:01:54]} 22. Rxd7+ {[%clk 0:01:41]}  Kc6 {[%clk 0:01:55]} 23. Rxf7 {[%clk 0:01:40]}  Bg5+ {[%clk 0:01:55]} 24. Kb1 {[%clk 0:01:30]}  Rd8 {[%clk 0:01:55]} 25. a4 {[%clk 0:01:17]}  Rd2 {[%clk 0:01:49]} 26. axb5+ {[%clk 0:00:57]}  axb5 {[%clk 0:01:49]} 27. Ra7 {[%clk 0:00:51]}  Kb6 {[%clk 0:01:45]} 28. Ra8 {[%clk 0:00:50]}  Rxg2 {[%clk 0:01:35]} 29. h3 {[%clk 0:00:48]}  Rh2 {[%clk 0:01:31]} 30. Rb8+ {[%clk 0:00:44]}  Kc7 {[%clk 0:01:31]} 31. Rxb5 {[%clk 0:00:42]}  Rxh3 {[%clk 0:01:31]} 32. Ne4 {[%clk 0:00:42]}  Rh1+ {[%clk 0:01:25]} 33. Ka2 {[%clk 0:00:42]}  Rg1 {[%clk 0:01:25]} 34. Nf2 {[%clk 0:00:20]}  Rg2 {[%clk 0:01:23]} 35. Nh3 {[%clk 0:00:13]}  Rg3 {[%clk 0:01:20]} 36. Rb3 {[%clk 0:00:13]}  Be3 {[%clk 0:01:20]} 37. Rc3+ {[%clk 0:00:11]}  Kd7 {[%clk 0:01:19]} 38. Rd3+ {[%clk 0:00:00]}  Ke7 {[%clk 0:01:18]} 0-1


[Site "https://www.chess.com"]

[Event "Titled Tuesday Blitz June 27 Early 2023"]
[White "Erdogmus, Yagiz Kaan"]
[Black "Srebrnic, Marko"]
[WhiteFideId "44599790"]
[BlackFideId "14603616"]
[WhiteElo "2837"]
[BlackElo "2486"]
[Result "1-0"]
[Round "1"]
[TimeControl "180+2"]
[Date "2023.06.27"]
[WhiteClock "0:00:09"]
[BlackClock "0:00:07"]
[Board "61"]

1. e4 {[%clk 0:03:00]}  c5 {[%clk 0:02:59]} 2. Nf3 {[%clk 0:03:00]}  Nc6 {[%clk 0:02:59]} 3. d4 {[%clk 0:02:58]}  cxd4 {[%clk 0:02:58]} 4. Nxd4 {[%clk 0:02:59]}  e5 {[%clk 0:02:59]} 5. Nb5 {[%clk 0:02:58]}  d6 {[%clk 0:02:59]} 6. c4 {[%clk 0:02:58]}  Be7 {[%clk 0:02:58]} 7. N1c3 {[%clk 0:02:57]}  a6 {[%clk 0:02:59]} 8. Na3 {[%clk 0:02:56]}  Be6 {[%clk 0:02:59]} 9. Nc2 {[%clk 0:02:55]}  Bg5 {[%clk 0:02:59]} 10. Bxg5 {[%clk 0:02:49]}  Qxg5 {[%clk 0:02:58]} 11. Nd5 {[%clk 0:02:44]}  Bxd5 {[%clk 0:02:51]} 12. cxd5 {[%clk 0:02:44]}  Nd4 {[%clk 0:02:07]} 13. Nxd4 {[%clk 0:02:42]}  exd4 {[%clk 0:02:08]} 14. Qa4+ {[%clk 0:02:33]}  Ke7 {[%clk 0:01:52]} 15. Qxd4 {[%clk 0:02:28]}  Nf6 {[%clk 0:01:42]} 16. g3 {[%clk 0:02:03]}  Nd7 {[%clk 0:01:27]} 17. Be2 {[%clk 0:01:54]}  Rac8 {[%clk 0:01:20]} 18. f4 {[%clk 0:01:30]}  Qf6 {[%clk 0:01:20]} 19. Qd2 {[%clk 0:01:29]}  Rc5 {[%clk 0:01:01]} 20. O-O {[%clk 0:00:56]}  Rhc8 {[%clk 0:00:59]} 21. Bd1 {[%clk 0:00:54]}  Rc4 {[%clk 0:00:54]} 22. e5 {[%clk 0:00:38]}  dxe5 {[%clk 0:00:54]} 23. fxe5 {[%clk 0:00:39]}  Qb6+ {[%clk 0:00:55]} 24. Kh1 {[%clk 0:00:39]}  f6 {[%clk 0:00:22]} 25. Bb3 {[%clk 0:00:30]}  Nxe5 {[%clk 0:00:18]} 26. Bxc4 {[%clk 0:00:29]}  Rxc4 {[%clk 0:00:19]} 27. Rad1 {[%clk 0:00:24]}  Kd6 {[%clk 0:00:17]} 28. b3 {[%clk 0:00:24]}  Rc5 {[%clk 0:00:13]} 29. Qd4 {[%clk 0:00:21]}  Qb5 {[%clk 0:00:12]} 30. Qe4 {[%clk 0:00:14]}  h6 {[%clk 0:00:08]} 31. Kg1 {[%clk 0:00:11]}  Rc3 {[%clk 0:00:08]} 32. Qf5 {[%clk 0:00:11]}  Qc5+ {[%clk 0:00:08]} 33. Rf2 {[%clk 0:00:11]}  Rc1 {[%clk 0:00:08]} 34. Qe6+ {[%clk 0:00:11]}  Kc7 {[%clk 0:00:08]} 35. d6+ {[%clk 0:00:11]}  Kb8 {[%clk 0:00:06]} 36. Rxc1 {[%clk 0:00:11]}  Qxc1+ {[%clk 0:00:07]} 37. Kg2 {[%clk 0:00:10]}  Qc6+ {[%clk 0:00:07]} 38. Kh3 {[%clk 0:00:11]}  Nd7 {[%clk 0:00:05]} 39. Qe8+ {[%clk 0:00:09]}  Ka7 {[%clk 0:00:05]} 40. Qe3+ {[%clk 0:00:10]}  b6 {[%clk 0:00:05]} 41. Rd2 {[%clk 0:00:09]}  Qb5 {[%clk 0:00:04]} 42. Kg2 {[%clk 0:00:08]}  Qc6+ {[%clk 0:00:04]} 43. Kf2 {[%clk 0:00:08]}  Qb5 {[%clk 0:00:05]} 44. Qe6 {[%clk 0:00:07]}  Qc5+ {[%clk 0:00:05]} 45. Ke2 {[%clk 0:00:08]}  Qc6 {[%clk 0:00:06]} 46. Qd5 {[%clk 0:00:08]}  Qc3 {[%clk 0:00:05]} 47. Qc4 {[%clk 0:00:06]}  Qe5+ {[%clk 0:00:05]} 48. Kd1 {[%clk 0:00:07]}  Qc5 {[%clk 0:00:03]} 49. Qxc5 {[%clk 0:00:06]}  bxc5 {[%clk 0:00:04]} 50. Re2 {[%clk 0:00:07]}  Kb6 {[%clk 0:00:05]} 51. Re7 {[%clk 0:00:07]}  Kc6 {[%clk 0:00:04]} 52. Rxg7 {[%clk 0:00:08]}  Kxd6 {[%clk 0:00:05]} 53. Rh7 {[%clk 0:00:09]}  Ke6 {[%clk 0:00:06]} 54. Rxh6 {[%clk 0:00:09]}  Ne5 {[%clk 0:00:06]} 55. Rh7 {[%clk 0:00:10]}  Nc6 {[%clk 0:00:06]} 56. Rb7 {[%clk 0:00:09]}  Kd6 {[%clk 0:00:07]} 57. Rb6 {[%clk 0:00:10]}  Kd5 {[%clk 0:00:08]} 58. Rxc6 {[%clk 0:00:09]}  f5 {[%clk 0:00:07]} 59. Rxa6 {[%clk 0:00:09]} 1-0


[Site "https://www.chess.com"]

[Event "Titled Tuesday Blitz June 27 Early 2023"]
[White "Kielinkei"]
[Black "Moiseenko, Alexander"]
[BlackFideId "14102560"]
[WhiteElo "2481"]
[BlackElo "2827"]
[Result "0-1"]
[Round "1"]
[TimeControl "180+2"]
[Date "2023.06.27"]
[WhiteClock "0:01:54"]
[BlackClock "0:02:05"]
[Board "64"]

1. Nf3 {[%clk 0:02:59]}  d5 {[%clk 0:02:58]} 2. g3 {[%clk 0:02:59]}  Nc6 {[%clk 0:02:57]} 3. d4 {[%clk 0:02:59]}  Bf5 {[%clk 0:02:57]} 4. c3 {[%clk 0:02:55]}  e6 {[%clk 0:02:47]} 5. Bg2 {[%clk 0:02:55]}  Bd6 {[%clk 0:02:46]} 6. Qb3 {[%clk 0:02:54]}  Rb8 {[%clk 0:02:45]} 7. O-O {[%clk 0:02:52]}  h5 {[%clk 0:02:42]} 8. h4 {[%clk 0:02:52]}  Nf6 {[%clk 0:02:40]} 9. Bg5 {[%clk 0:02:50]}  Qd7 {[%clk 0:02:28]} 10. Nbd2 {[%clk 0:02:45]}  Ne4 {[%clk 0:02:28]} 11. Nxe4 {[%clk 0:02:37]}  Bxe4 {[%clk 0:02:08]} 12. Rad1 {[%clk 0:02:21]}  f6 {[%clk 0:02:06]} 13. Bf4 {[%clk 0:01:54]}  Na5 {[%clk 0:02:05]} 0-1


[Site "https://www.chess.com"]

[Event "Titled Tuesday Blitz June 27 Early 2023"]
[White "Beerdsen, Thomas"]
[Black "Tokman, Ariel"]
[WhiteFideId "1030108"]
[BlackFideId "117420"]
[WhiteElo "2825"]
[BlackElo "2480"]
[Result "1-0"]
[Round "1"]
[TimeControl "180+2"]
[Date "2023.06.27"]
[WhiteClock "0:01:26"]
[BlackClock "0:00:24"]
[Board "65"]

1. e4 {[%clk 0:03:00]}  c5 {[%clk 0:02:57]} 2. Nf3 {[%clk 0:03:01]}  e6 {[%clk 0:02:57]} 3. d4 {[%clk 0:03:01]}  cxd4 {[%clk 0:02:57]} 4. Bg5 {[%clk 0:03:02]}  Qc7 {[%clk 0:02:46]} 5. Nxd4 {[%clk 0:02:59]}  a6 {[%clk 0:02:46]} 6. Nc3 {[%clk 0:02:58]}  b5 {[%clk 0:02:44]} 7. Bd3 {[%clk 0:02:57]}  Bb7 {[%clk 0:02:43]} 8. O-O {[%clk 0:02:57]}  d6 {[%clk 0:02:41]} 9. Re1 {[%clk 0:02:54]}  Be7 {[%clk 0:02:36]} 10. Qg4 {[%clk 0:02:49]}  Nf6 {[%clk 0:02:31]} 11. Qh4 {[%clk 0:02:46]}  Nbd7 {[%clk 0:02:23]} 12. Kh1 {[%clk 0:02:36]}  O-O {[%clk 0:02:09]} 13. Re3 {[%clk 0:02:23]}  Ne5 {[%clk 0:02:04]} 14. f4 {[%clk 0:02:14]}  Ng6 {[%clk 0:02:02]} 15. Qg3 {[%clk 0:02:10]}  Nh5 {[%clk 0:01:48]} 16. Qg4 {[%clk 0:02:05]}  Bxg5 {[%clk 0:01:48]} 17. fxg5 {[%clk 0:02:05]}  Nhf4 {[%clk 0:01:47]} 18. Rf1 {[%clk 0:02:04]}  Nxd3 {[%clk 0:01:44]} 19. cxd3 {[%clk 0:02:05]}  b4 {[%clk 0:01:44]} 20. Nce2 {[%clk 0:02:03]}  d5 {[%clk 0:01:43]} 21. e5 {[%clk 0:02:01]}  Rac8 {[%clk 0:01:28]} 22. Qh5 {[%clk 0:02:01]}  Rfe8 {[%clk 0:01:25]} 23. Rh3 {[%clk 0:01:49]}  Nf8 {[%clk 0:01:24]} 24. g6 {[%clk 0:01:32]}  fxg6 {[%clk 0:01:12]} 25. Rxf8+ {[%clk 0:01:33]}  Kxf8 {[%clk 0:01:09]} 26. Qxh7 {[%clk 0:01:34]}  Qc1+ {[%clk 0:01:00]} 27. Ng1 {[%clk 0:01:34]}  Rc7 {[%clk 0:00:38]} 28. Qxg6 {[%clk 0:01:26]}  Rf7 {[%clk 0:00:28]} 29. Rh8+ {[%clk 0:01:25]}  Ke7 {[%clk 0:00:24]} 30. Qxe6+ {[%clk 0:01:26]} 1-0


[Site "https://www.chess.com"]

[Event "Titled Tuesday Blitz June 27 Early 2023"]
[White "Devaev, Alexander"]
[Black "Tsaruk, Maksim"]
[WhiteFideId "4169395"]
[BlackFideId "13511173"]
[WhiteElo "2479"]
[BlackElo "2825"]
[Result "1-0"]
[Round "1"]
[TimeControl "180+2"]
[Date "2023.06.27"]
[WhiteClock "0:00:11"]
[BlackClock "0:00:04"]
[Board "66"]

1. Nf3 {[%clk 0:02:59]}  Nf6 {[%clk 0:02:49]} 2. c4 {[%clk 0:02:58]}  e6 {[%clk 0:00:20]} 3. Nc3 {[%clk 0:02:48]}  d5 {[%clk 0:00:20]} 4. d4 {[%clk 0:02:49]}  c5 {[%clk 0:00:20]} 5. cxd5 {[%clk 0:02:49]}  Nxd5 {[%clk 0:00:21]} 6. e3 {[%clk 0:02:46]}  Nxc3 {[%clk 0:00:22]} 7. bxc3 {[%clk 0:02:47]}  Nc6 {[%clk 0:00:23]} 8. Bd3 {[%clk 0:02:46]}  Be7 {[%clk 0:00:22]} 9. Qc2 {[%clk 0:02:46]}  h6 {[%clk 0:00:22]} 10. O-O {[%clk 0:02:42]}  O-O {[%clk 0:00:22]} 11. Qe2 {[%clk 0:02:37]}  b6 {[%clk 0:00:21]} 12. Bb2 {[%clk 0:02:36]}  Bb7 {[%clk 0:00:19]} 13. e4 {[%clk 0:02:37]}  Bf6 {[%clk 0:00:19]} 14. Qe3 {[%clk 0:02:24]}  cxd4 {[%clk 0:00:18]} 15. cxd4 {[%clk 0:02:24]}  Nb4 {[%clk 0:00:19]} 16. Bb1 {[%clk 0:02:21]}  Rc8 {[%clk 0:00:19]} 17. Qd2 {[%clk 0:02:15]}  a5 {[%clk 0:00:17]} 18. Re1 {[%clk 0:02:12]}  Bg5 {[%clk 0:00:12]} 19. Nxg5 {[%clk 0:02:00]}  Qxg5 {[%clk 0:00:13]} 20. f4 {[%clk 0:02:00]}  Qg4 {[%clk 0:00:11]} 21. a3 {[%clk 0:01:56]}  Nc6 {[%clk 0:00:10]} 22. Bc2 {[%clk 0:01:23]}  Rfd8 {[%clk 0:00:10]} 23. Rad1 {[%clk 0:01:24]}  f5 {[%clk 0:00:06]} 24. d5 {[%clk 0:01:10]}  Ne7 {[%clk 0:00:06]} 25. Qf2 {[%clk 0:00:42]}  fxe4 {[%clk 0:00:05]} 26. h3 {[%clk 0:00:36]}  Qh5 {[%clk 0:00:03]} 27. Rxe4 {[%clk 0:00:26]}  Bxd5 {[%clk 0:00:03]} 28. Re5 {[%clk 0:00:27]}  Qf7 {[%clk 0:00:02]} 29. Rde1 {[%clk 0:00:23]}  Nf5 {[%clk 0:00:03]} 30. Bxf5 {[%clk 0:00:22]}  exf5 {[%clk 0:00:03]} 31. Re7 {[%clk 0:00:23]}  Qg6 {[%clk 0:00:01]} 32. Rxg7+ {[%clk 0:00:23]}  Qxg7 {[%clk 0:00:02]} 33. Bxg7 {[%clk 0:00:23]}  Kxg7 {[%clk 0:00:03]} 34. Qd4+ {[%clk 0:00:18]}  Kg6 {[%clk 0:00:03]} 35. Qxb6+ {[%clk 0:00:17]}  Kg7 {[%clk 0:00:02]} 36. Qa7+ {[%clk 0:00:15]}  Bf7 {[%clk 0:00:02]} 37. Qf2 {[%clk 0:00:14]}  Rd3 {[%clk 0:00:02]} 38. Re3 {[%clk 0:00:14]}  Rc1+ {[%clk 0:00:03]} 39. Kh2 {[%clk 0:00:14]}  Rdd1 {[%clk 0:00:03]} 40. Qb2+ {[%clk 0:00:11]}  Kg6 {[%clk 0:00:03]} 41. Rg3+ {[%clk 0:00:10]}  Kh5 {[%clk 0:00:03]} 42. Qe2+ {[%clk 0:00:09]}  Kh4 {[%clk 0:00:04]} 43. Rg4+ {[%clk 0:00:10]}  fxg4 {[%clk 0:00:04]} 44. Qxg4# {[%clk 0:00:11]} 1-0


[Site "https://www.chess.com"]

[Event "Titled Tuesday Blitz June 27 Early 2023"]
[White "Harsh Suresh"]
[Black "Ritvin, Stanislav"]
[WhiteFideId "45018464"]
[BlackFideId "2011751"]
[WhiteElo "2824"]
[BlackElo "2479"]
[Result "1-0"]
[Round "1"]
[TimeControl "180+2"]
[Date "2023.06.27"]
[WhiteClock "0:00:10"]
[BlackClock "0:00:04"]
[Board "67"]

1. e4 {[%clk 0:02:38]}  e5 {[%clk 0:03:00]} 2. Nf3 {[%clk 0:02:35]}  Nc6 {[%clk 0:03:00]} 3. Bc4 {[%clk 0:02:36]}  Bc5 {[%clk 0:02:59]} 4. O-O {[%clk 0:02:36]}  Nf6 {[%clk 0:02:57]} 5. d4 {[%clk 0:02:36]}  Bxd4 {[%clk 0:02:52]} 6. Nxd4 {[%clk 0:02:36]}  Nxd4 {[%clk 0:02:51]} 7. f4 {[%clk 0:02:36]}  Qe7 {[%clk 0:02:46]} 8. fxe5 {[%clk 0:02:35]}  Qxe5 {[%clk 0:02:44]} 9. Be3 {[%clk 0:01:18]}  Ne6 {[%clk 0:02:42]} 10. Nc3 {[%clk 0:01:17]}  Nxe4 {[%clk 0:02:35]} 11. Nd5 {[%clk 0:01:03]}  c6 {[%clk 0:02:14]} 12. Nb4 {[%clk 0:00:45]}  d5 {[%clk 0:02:12]} 13. Nd3 {[%clk 0:00:44]}  Qc7 {[%clk 0:01:59]} 14. Bb3 {[%clk 0:00:44]}  O-O {[%clk 0:01:56]} 15. Qf3 {[%clk 0:00:41]}  N6g5 {[%clk 0:01:46]} 16. Qh5 {[%clk 0:00:41]}  h6 {[%clk 0:01:40]} 17. Rae1 {[%clk 0:00:30]}  Be6 {[%clk 0:01:23]} 18. Kh1 {[%clk 0:00:27]}  Rae8 {[%clk 0:01:20]} 19. a4 {[%clk 0:00:25]}  f5 {[%clk 0:01:12]} 20. Nf4 {[%clk 0:00:25]}  Bf7 {[%clk 0:01:11]} 21. Qd1 {[%clk 0:00:25]}  Ne6 {[%clk 0:01:10]} 22. Nd3 {[%clk 0:00:24]}  Bg6 {[%clk 0:01:06]} 23. Bg1 {[%clk 0:00:18]}  f4 {[%clk 0:01:04]} 24. Qg4 {[%clk 0:00:16]}  Bf5 {[%clk 0:01:02]} 25. Qf3 {[%clk 0:00:16]}  Nd2 {[%clk 0:01:00]} 26. Qf2 {[%clk 0:00:16]}  Nxf1 {[%clk 0:00:59]} 27. Qxf1 {[%clk 0:00:16]}  Be4 {[%clk 0:00:54]} 28. Nf2 {[%clk 0:00:15]}  Bf5 {[%clk 0:00:49]} 29. Nd3 {[%clk 0:00:14]}  Be4 {[%clk 0:00:42]} 30. Nf2 {[%clk 0:00:14]}  Bg6 {[%clk 0:00:42]} 31. Nd3 {[%clk 0:00:14]}  Ng5 {[%clk 0:00:35]} 32. Rxe8 {[%clk 0:00:13]}  Bxe8 {[%clk 0:00:35]} 33. Bc5 {[%clk 0:00:11]}  Rf5 {[%clk 0:00:29]} 34. Qe1 {[%clk 0:00:11]}  Ne4 {[%clk 0:00:29]} 35. Qxe4 {[%clk 0:00:11]}  Qf7 {[%clk 0:00:28]} 36. Qf3 {[%clk 0:00:09]}  Bd7 {[%clk 0:00:25]} 37. Bxa7 {[%clk 0:00:09]}  Be6 {[%clk 0:00:24]} 38. a5 {[%clk 0:00:09]}  Rg5 {[%clk 0:00:18]} 39. Bd4 {[%clk 0:00:09]}  Bg4 {[%clk 0:00:18]} 40. Qxf4 {[%clk 0:00:09]}  Rf5 {[%clk 0:00:17]} 41. Qxg4 {[%clk 0:00:09]}  Rf1+ {[%clk 0:00:09]} 42. Bg1 {[%clk 0:00:10]}  Qf5 {[%clk 0:00:09]} 43. Qxf5 {[%clk 0:00:10]}  Rxf5 {[%clk 0:00:10]} 44. Nc5 {[%clk 0:00:10]}  Rf7 {[%clk 0:00:04]} 45. c4 {[%clk 0:00:10]} 1-0


[Site "https://www.chess.com"]

[Event "Titled Tuesday Blitz June 27 Early 2023"]
[White "Corredor Castellanos, Camilo"]
[Black "Kravtsiv, Martyn"]
[WhiteFideId "4425871"]
[BlackFideId "14113147"]
[WhiteElo "2479"]
[BlackElo "2821"]
[Result "0-1"]
[Round "1"]
[TimeControl "180+2"]
[Date "2023.06.27"]
[WhiteClock "0:00:16"]
[BlackClock "0:01:18"]
[Board "68"]

1. e4 {[%clk 0:02:58]}  e5 {[%clk 0:02:58]} 2. Nf3 {[%clk 0:02:56]}  Nc6 {[%clk 0:02:58]} 3. Bb5 {[%clk 0:02:56]}  Be7 {[%clk 0:02:58]} 4. O-O {[%clk 0:02:53]}  Nf6 {[%clk 0:02:57]} 5. d3 {[%clk 0:02:52]}  d6 {[%clk 0:02:57]} 6. Nc3 {[%clk 0:02:47]}  O-O {[%clk 0:02:56]} 7. h3 {[%clk 0:02:44]}  h6 {[%clk 0:02:52]} 8. Bxc6 {[%clk 0:01:12]}  bxc6 {[%clk 0:02:51]} 9. d4 {[%clk 0:01:12]}  exd4 {[%clk 0:02:51]} 10. Nxd4 {[%clk 0:01:05]}  Bd7 {[%clk 0:02:51]} 11. Bf4 {[%clk 0:01:03]}  c5 {[%clk 0:02:44]} 12. Nf5 {[%clk 0:00:52]}  Bxf5 {[%clk 0:02:42]} 13. exf5 {[%clk 0:00:53]}  Re8 {[%clk 0:02:42]} 14. Qd3 {[%clk 0:00:52]}  d5 {[%clk 0:02:35]} 15. Rfe1 {[%clk 0:00:50]}  c6 {[%clk 0:02:31]} 16. g4 {[%clk 0:00:43]}  c4 {[%clk 0:02:30]} 17. Qg3 {[%clk 0:00:43]}  Bb4 {[%clk 0:02:29]} 18. a3 {[%clk 0:00:35]}  Bxc3 {[%clk 0:02:26]} 19. Qxc3 {[%clk 0:00:36]}  Ne4 {[%clk 0:02:26]} 20. Qf3 {[%clk 0:00:35]}  Qf6 {[%clk 0:02:20]} 21. c3 {[%clk 0:00:33]}  Kh7 {[%clk 0:02:11]} 22. Rad1 {[%clk 0:00:32]}  g6 {[%clk 0:02:09]} 23. fxg6+ {[%clk 0:00:32]}  fxg6 {[%clk 0:02:10]} 24. Qe3 {[%clk 0:00:25]}  h5 {[%clk 0:01:26]} 25. g5 {[%clk 0:00:21]}  Qf5 {[%clk 0:01:25]} 26. Bg3 {[%clk 0:00:20]}  Nxg5 {[%clk 0:01:21]} 27. Qc5 {[%clk 0:00:18]}  Nf3+ {[%clk 0:01:19]} 28. Kg2 {[%clk 0:00:16]}  Nxe1+ {[%clk 0:01:18]} 0-1


[Site "https://www.chess.com"]

[Event "Titled Tuesday Blitz June 27 Early 2023"]
[White "Rahman, Masruri"]
[Black "Mackster23"]
[WhiteFideId "7101163"]
[WhiteElo "2818"]
[BlackElo "2471"]
[Result "0-1"]
[Round "1"]
[TimeControl "180+2"]
[Date "2023.06.27"]
[WhiteClock "0:00:13"]
[BlackClock "0:00:04"]
[Board "71"]

1. d4 {[%clk 0:02:59]}  d5 {[%clk 0:02:57]} 2. Bf4 {[%clk 0:02:59]}  c5 {[%clk 0:02:54]} 3. e3 {[%clk 0:02:59]}  Nc6 {[%clk 0:02:48]} 4. c3 {[%clk 0:02:59]}  Qb6 {[%clk 0:02:36]} 5. Qb3 {[%clk 0:02:58]}  c4 {[%clk 0:02:36]} 6. Qc2 {[%clk 0:02:58]}  e5 {[%clk 0:02:35]} 7. Bg3 {[%clk 0:02:53]}  Bf5 {[%clk 0:02:32]} 8. Qc1 {[%clk 0:02:52]}  exd4 {[%clk 0:02:21]} 9. exd4 {[%clk 0:02:49]}  O-O-O {[%clk 0:02:16]} 10. Be2 {[%clk 0:02:33]}  Nf6 {[%clk 0:02:12]} 11. Nd2 {[%clk 0:02:33]}  Bd6 {[%clk 0:02:07]} 12. b3 {[%clk 0:02:15]}  cxb3 {[%clk 0:01:56]} 13. axb3 {[%clk 0:02:16]}  Bxg3 {[%clk 0:01:52]} 14. hxg3 {[%clk 0:02:16]}  Rhe8 {[%clk 0:01:53]} 15. Kf1 {[%clk 0:02:14]}  Re7 {[%clk 0:01:26]} 16. Qa3 {[%clk 0:01:31]}  Rde8 {[%clk 0:01:19]} 17. Re1 {[%clk 0:01:09]}  Bd3 {[%clk 0:00:51]} 18. Ndf3 {[%clk 0:01:09]}  Ne4 {[%clk 0:00:38]} 19. Qc1 {[%clk 0:01:02]}  Qa6 {[%clk 0:00:34]} 20. c4 {[%clk 0:01:01]}  dxc4 {[%clk 0:00:31]} 21. bxc4 {[%clk 0:00:57]}  Nb4 {[%clk 0:00:25]} 22. Nh3 {[%clk 0:00:46]}  Bxe2+ {[%clk 0:00:21]} 23. Kg1 {[%clk 0:00:43]}  Qxc4 {[%clk 0:00:16]} 24. Qf4 {[%clk 0:00:40]}  Bxf3 {[%clk 0:00:14]} 25. Rc1 {[%clk 0:00:38]}  Nc3 {[%clk 0:00:12]} 26. Kh2 {[%clk 0:00:37]}  Bc6 {[%clk 0:00:08]} 27. Qg4+ {[%clk 0:00:35]}  Kb8 {[%clk 0:00:08]} 28. Qf4+ {[%clk 0:00:33]}  Ka8 {[%clk 0:00:06]} 29. Rhd1 {[%clk 0:00:31]}  Nd3 {[%clk 0:00:06]} 30. Qd2 {[%clk 0:00:26]}  Nxc1 {[%clk 0:00:05]} 31. Rxc1 {[%clk 0:00:26]}  Qe2 {[%clk 0:00:05]} 32. Qxc3 {[%clk 0:00:25]}  Qe4 {[%clk 0:00:05]} 33. Nf4 {[%clk 0:00:23]}  g5 {[%clk 0:00:04]} 34. f3 {[%clk 0:00:20]}  Qe3 {[%clk 0:00:04]} 35. Qc5 {[%clk 0:00:17]}  gxf4 {[%clk 0:00:04]} 36. d5 {[%clk 0:00:17]}  fxg3+ {[%clk 0:00:04]} 37. Kxg3 {[%clk 0:00:13]}  Qxc5 {[%clk 0:00:04]} 0-1


[Site "https://www.chess.com"]

[Event "Titled Tuesday Blitz June 27 Early 2023"]
[White "Horvath, Dominik"]
[Black "Kovalevsky, Stanislav"]
[WhiteFideId "1642561"]
[BlackFideId "13508598"]
[WhiteElo "2814"]
[BlackElo "2470"]
[Result "1-0"]
[Round "1"]
[TimeControl "180+2"]
[Date "2023.06.27"]
[WhiteClock "0:00:52"]
[BlackClock "0:00:04"]
[Board "73"]

1. Nf3 {[%clk 0:03:00]}  d5 {[%clk 0:02:14]} 2. c4 {[%clk 0:03:00]}  c6 {[%clk 0:02:00]} 3. e3 {[%clk 0:02:55]}  Nf6 {[%clk 0:01:58]} 4. Qc2 {[%clk 0:02:55]}  e6 {[%clk 0:01:58]} 5. b3 {[%clk 0:02:55]}  Nbd7 {[%clk 0:01:59]} 6. Qc3 {[%clk 0:02:53]}  a5 {[%clk 0:01:57]} 7. Ba3 {[%clk 0:02:51]}  Be7 {[%clk 0:01:56]} 8. Bxe7 {[%clk 0:02:51]}  Qxe7 {[%clk 0:01:57]} 9. Be2 {[%clk 0:02:50]}  a4 {[%clk 0:01:57]} 10. O-O {[%clk 0:02:50]}  axb3 {[%clk 0:01:57]} 11. axb3 {[%clk 0:02:51]}  Rxa1 {[%clk 0:01:57]} 12. Qxa1 {[%clk 0:02:52]}  O-O {[%clk 0:01:57]} 13. d4 {[%clk 0:02:51]}  Ne4 {[%clk 0:01:56]} 14. Nc3 {[%clk 0:02:50]}  Qb4 {[%clk 0:01:54]} 15. Nxe4 {[%clk 0:02:47]}  dxe4 {[%clk 0:01:54]} 16. Ng5 {[%clk 0:02:47]}  Qxb3 {[%clk 0:01:21]} 17. Nxe4 {[%clk 0:02:47]}  e5 {[%clk 0:01:21]} 18. dxe5 {[%clk 0:02:41]}  Qc2 {[%clk 0:01:21]} 19. Ng3 {[%clk 0:02:27]}  Re8 {[%clk 0:01:21]} 20. Rd1 {[%clk 0:02:22]}  Nxe5 {[%clk 0:01:13]} 21. h3 {[%clk 0:01:27]}  Nxc4 {[%clk 0:00:53]} 22. Rc1 {[%clk 0:01:25]}  Qb2 {[%clk 0:00:54]} 23. Bxc4 {[%clk 0:01:24]}  Qxa1 {[%clk 0:00:53]} 24. Rxa1 {[%clk 0:01:25]}  b5 {[%clk 0:00:51]} 25. Be2 {[%clk 0:01:24]}  Be6 {[%clk 0:00:50]} 26. Bf3 {[%clk 0:01:23]}  c5 {[%clk 0:00:50]} 27. Bc6 {[%clk 0:01:22]}  Rb8 {[%clk 0:00:40]} 28. Bxb5 {[%clk 0:01:22]}  Kf8 {[%clk 0:00:41]} 29. Bd3 {[%clk 0:01:21]}  c4 {[%clk 0:00:41]} 30. Bf1 {[%clk 0:01:20]}  c3 {[%clk 0:00:41]} 31. Rc1 {[%clk 0:01:19]}  c2 {[%clk 0:00:38]} 32. Rxc2 {[%clk 0:01:18]}  Rb1 {[%clk 0:00:39]} 33. Kh2 {[%clk 0:01:17]}  h5 {[%clk 0:00:38]} 34. Be2 {[%clk 0:01:16]}  h4 {[%clk 0:00:38]} 35. Ne4 {[%clk 0:01:15]}  f6 {[%clk 0:00:37]} 36. Rc7 {[%clk 0:01:15]}  Bf5 {[%clk 0:00:38]} 37. Bf3 {[%clk 0:01:15]}  Rb2 {[%clk 0:00:37]} 38. Nd6 {[%clk 0:01:15]}  Be6 {[%clk 0:00:36]} 39. e4 {[%clk 0:01:05]}  Rxf2 {[%clk 0:00:36]} 40. Nf5 {[%clk 0:01:05]}  g5 {[%clk 0:00:27]} 41. Nd4 {[%clk 0:01:06]}  Bf7 {[%clk 0:00:23]} 42. Bg4 {[%clk 0:01:05]}  Rf4 {[%clk 0:00:20]} 43. Bf5 {[%clk 0:01:05]}  Rf2 {[%clk 0:00:19]} 44. Ne6+ {[%clk 0:01:05]}  Bxe6 {[%clk 0:00:20]} 45. Bxe6 {[%clk 0:01:05]}  Ke8 {[%clk 0:00:20]} 46. Bd5 {[%clk 0:01:04]}  Kf8 {[%clk 0:00:20]} 47. Rf7+ {[%clk 0:01:03]}  Ke8 {[%clk 0:00:21]} 48. Kg1 {[%clk 0:01:04]}  Rf4 {[%clk 0:00:21]} 49. Rg7 {[%clk 0:01:03]}  Kf8 {[%clk 0:00:21]} 50. Rg8+ {[%clk 0:01:03]}  Ke7 {[%clk 0:00:22]} 51. e5 {[%clk 0:01:03]}  Rd4 {[%clk 0:00:20]} 52. Rg7+ {[%clk 0:01:03]}  Kf8 {[%clk 0:00:17]} 53. Rg8+ {[%clk 0:00:56]}  Ke7 {[%clk 0:00:17]} 54. exf6+ {[%clk 0:00:55]}  Kxf6 {[%clk 0:00:18]} 55. Bf3 {[%clk 0:00:56]}  Ke5 {[%clk 0:00:18]} 56. Rf8 {[%clk 0:00:55]}  Rd2 {[%clk 0:00:18]} 57. Kh2 {[%clk 0:00:55]}  Rb2 {[%clk 0:00:17]} 58. Bg4 {[%clk 0:00:55]}  Ke4 {[%clk 0:00:14]} 59. Rf5 {[%clk 0:00:55]}  Ke3 {[%clk 0:00:06]} 60. Rxg5 {[%clk 0:00:56]}  Rb4 {[%clk 0:00:05]} 61. Rh5 {[%clk 0:00:55]}  Kf2 {[%clk 0:00:06]} 62. Rxh4 {[%clk 0:00:54]}  Rb1 {[%clk 0:00:03]} 63. Rh5 {[%clk 0:00:52]}  Rh1+ {[%clk 0:00:04]} 1-0


[Site "https://www.chess.com"]